fUSD/lending_fUSD_20240318
["ID","MTS","AMOUNT","RATE_DAILY","PERIOD"]
[319457345,1710784247800,-500.0,0.00021917,2]
[319457346,1710784247810,-1052.86,0.00021917,2]
[319457347,1710784247820,-500.0,0.00021917,2]
[319457348,1710784247829,-500.0,0.00021917,2]
[319457349,1710784247839,-3194.8,0.00021917,2]
[319457350,1710784247849,-572.47,0.00021917,2]
[319457351,1710784247858,-500.0,0.00021917,2]
[319457352,1710784247867,-500.0,0.00021917,2]
[319457353,1710784247877,-500.0,0.00021917,2]
[319457354,1710784247886,-500.0,0.00021917,2]
[319457355,1710784247896,-500.0,0.00021917,2]
[319457356,1710784247905,-500.0,0.00021917,2]
[319457357,1710784247915,-706.34,0.00021917,2]
[319457358,1710784247924,-500.0,0.00021917,2]
[319457359,1710784247934,-500.0,0.00021917,2]
[319457360,1710784247946,-958.74,0.00021917,2]
[319457361,1710784247956,-500.0,0.00021917,2]
[319457362,1710784247965,-2257.66,0.00021917,2]
[319457363,1710784247975,-500.0,0.00021917,2]
[319457364,1710784247984,-500.0,0.00021917,2]
[319457365,1710784247994,-1231.38,0.00021917,2]
[319457366,1710784248003,-500.0,0.00021917,2]
[319457367,1710784248013,-500.0,0.00021917,2]
[319457368,1710784248022,-500.0,0.00021917,2]
[319457369,1710784248032,-2246.57,0.00021917,2]
[319457370,1710784248044,-500.0,0.00021917,2]
[319457371,1710784248053,-1667.4,0.00021917,2]
[319457372,1710784248062,-500.0,0.00021917,2]
[319457373,1710784248074,-500.0,0.00021917,2]
[319457374,1710784248082,-500.0,0.00021917,2]
[319457375,1710784248092,-500.0,0.00021917,2]
[319457376,1710784248101,-1529.13,0.00021917,2]
[319457377,1710784248111,-500.0,0.00021917,2]
[319457378,1710784248121,-500.66436391,0.00021917,2]
[319457379,1710784248130,-2136.29,0.00021917,2]
[319457380,1710784248139,-2048.09,0.00021917,2]
[319457381,1710784248150,-500.0,0.00021917,2]
[319457382,1710784248159,-500.0,0.00021917,2]
[319457383,1710784248168,-1538.35,0.00021917,2]
[319457384,1710784248177,-2395.0,0.00021917,2]
[319457385,1710784248186,-500.0,0.00021917,2]
[319457386,1710784248199,-500.0,0.00021917,2]
[319457387,1710784248208,-500.0,0.00021917,2]
[319457388,1710784248217,-908.76,0.00021917,2]
[319457389,1710784248227,-519.79,0.00021917,2]
[319457390,1710784248236,-500.0,0.00021917,2]
[319457391,1710784248245,-500.0,0.00021917,2]
[319457392,1710784248254,-538.13,0.00021917,2]
[319457393,1710784248263,-500.0,0.00021917,2]
[319457394,1710784248273,-500.0,0.00021917,2]
[319457395,1710784248283,-500.0,0.00021917,2]
[319457396,1710784248292,-500.0,0.00021917,2]
[319457397,1710784248302,-1611.66,0.00021917,2]
[319457398,1710784248311,-500.0,0.00021917,2]
[319457399,1710784248320,-500.0,0.00021917,2]
[319457400,1710784248330,-2306.02,0.00021917,2]
[319457401,1710784248339,-500.0,0.00021917,2]
[319457402,1710784248348,-500.0,0.00021917,2]
[319457403,1710784248538,-500.0,0.00021917,2]
[319457404,1710784248547,-500.0,0.00021917,2]
[319457405,1710784248557,-500.0,0.00021917,2]
[319457406,1710784248566,-500.0,0.00021917,2]
[319457407,1710784248576,-500.0,0.00021917,2]
[319457408,1710784248585,-500.0,0.00021917,2]
[319457409,1710784248595,-1977.79,0.00021917,2]
[319457410,1710784248604,-1437.33,0.00021917,2]
[319457411,1710784248614,-500.0,0.00021917,2]
[319457412,1710784248623,-767.1,0.00021917,2]
[319457413,1710784248633,-528.52,0.00021917,2]
[319457414,1710784248643,-500.0,0.00021917,2]
[319457415,1710784248653,-500.0,0.00021917,2]
[319457416,1710784248663,-500.0,0.00021917,2]
[319457417,1710784248672,-522.47,0.00021917,2]
[319457418,1710784248682,-500.0,0.00021917,2]
[319457419,1710784248696,-337.05619099,0.00021917,2]
[319457420,1710784248707,-704.73,0.00021917,2]
[319457421,1710784248717,-3955.59,0.00021917,2]
[319457422,1710784248727,-500.0,0.00021917,2]
[319457423,1710784248736,-500.0,0.00021917,2]
[319457424,1710784248745,-500.0,0.00021917,2]
[319457425,1710784248755,-500.0,0.00021917,2]
[319457426,1710784248765,-902.98,0.00021917,2]
[319457427,1710784248774,-1371.13,0.00021917,2]
[319457428,1710784248783,-3784.84,0.00021917,2]
[319457429,1710784248793,-500.0,0.00021917,2]
[319457430,1710784248803,-163.76033293,0.00021917,2]
[319457431,1710784248812,-500.0,0.00021917,2]
[319457432,1710784248822,-891.39,0.00021917,2]
[319457433,1710784248831,-500.0,0.00021917,2]
[319457434,1710784248841,-500.0,0.00021917,2]
[319457435,1710784248850,-538.41640397,0.00021917,2]
[319457436,1710784248871,-500.0,0.00021917,2]
[319457437,1710784248882,-500.0,0.00021917,2]
[319457438,1710784248893,-1060.33,0.00021917,2]
[319457439,1710784248903,-2782.71,0.00021917,2]
[319457440,1710784248913,-500.0,0.00021917,2]
[319457441,1710784248923,-603.48,0.00021917,2]
[319457442,1710784248933,-580.02,0.00021917,2]
[319457443,1710784248948,-2545.65,0.00021917,2]
[319457444,1710784248958,-1231.28,0.00021917,2]
[319457445,1710784248968,-495.2237935,0.00021917,2]
[319457446,1710784248978,-500.0,0.00021917,2]
[319457447,1710784248994,-508.28405675,0.00021917,2]
[319457448,1710784249052,-3862.32,0.00021917,2]
[319457449,1710784249063,-1210.16,0.00021917,2]
[319457450,1710784249074,-1140.4,0.00021917,2]
[319457451,1710784249085,-500.0,0.00021917,2]
[319457452,1710784249095,-500.8958117,0.00021917,2]
[319457453,1710784249104,-500.0,0.00021917,2]
[319457454,1710784249114,-500.0,0.00021917,2]
[319457455,1710784249125,-500.0,0.00021917,2]
[319457456,1710784249136,-500.0,0.00021917,2]
[319457457,1710784249148,-559.053209,0.00021917,2]
[319457458,1710784249158,-274.37660531,0.00021917,2]
[319457459,1710784249168,-500.0,0.00021917,2]
[319457460,1710784249177,-2441.48,0.00021917,2]
[319457461,1710784249186,-500.0,0.00021917,2]
[319457462,1710784249199,-2269.72,0.00021917,2]
[319457463,1710784249208,-500.0,0.00021917,2]
[319457464,1710784249218,-2114.18,0.00021917,2]
[319457465,1710784249228,-1520.9,0.00021917,2]
[319457466,1710784249237,-500.0,0.00021917,2]
[319457467,1710784249247,-500.0,0.00021917,2]
[319457468,1710784249257,-538.79,0.00021917,2]
[319457469,1710784249266,-500.0,0.00021917,2]
[319457470,1710784249275,-500.0,0.00021917,2]
[319457471,1710784249285,-766.4,0.00021917,2]
[319457472,1710784249295,-592.99,0.00021917,2]
[319457473,1710784249304,-534.98,0.00021917,2]
[319457474,1710784249314,-620.3,0.00021917,2]
[319457475,1710784249324,-500.0,0.00021917,2]
[319457476,1710784249333,-500.0,0.00021917,2]
[319457477,1710784249343,-1640.68,0.00021917,2]
[319457478,1710784249353,-500.0,0.00021917,2]
[319457479,1710784249366,-500.0,0.00021917,2]
[319457480,1710784249377,-3833.92,0.00021917,2]
[319457481,1710784249387,-500.0,0.00021917,2]
[319457482,1710784249398,-500.0,0.00021917,2]
[319457483,1710784249408,-500.0,0.00021917,2]
[319457484,1710784249418,-500.0,0.00021917,2]
[319457485,1710784249428,-4324.41,0.00021917,2]
[319457486,1710784249442,-693.19,0.00021917,2]
[319457487,1710784249451,-500.0,0.00021917,2]
[319457488,1710784249461,-500.0,0.00021917,2]
[319457489,1710784249472,-865.01,0.00021917,2]
[319457490,1710784249482,-500.0,0.00021917,2]
[319457491,1710784249492,-500.0,0.00021917,2]
[319457492,1710784249502,-500.0,0.00021917,2]
[319457493,1710784249512,-500.0,0.00021917,2]
[319457494,1710784249521,-1013.82,0.00021917,2]
[319457495,1710784249531,-661.22,0.00021917,2]
[319457496,1710784249541,-332.82,0.00021917,2]
[319457497,1710784249551,-1104.3,0.00021917,2]
[319457498,1710784249562,-500.0,0.00021917,2]
[319457499,1710784249572,-500.0,0.00021917,2]
[319457500,1710784249583,-500.0,0.00021917,2]
[319457501,1710784249594,-500.0,0.00021917,2]
[319457502,1710784249604,-505.84202557,0.00021917,2]
[319457503,1710784249615,-1032.58,0.00021917,2]
[319457504,1710784249625,-500.0,0.00021917,2]
[319457505,1710784249641,-965.75,0.00021917,2]
[319457506,1710784249651,-500.0,0.00021917,2]
[319457507,1710784249661,-500.0,0.00021917,2]
[319457508,1710784249671,-500.0,0.00021917,2]
[319457509,1710784249681,-500.0,0.00021917,2]
[319457510,1710784249697,-500.0,0.00021917,2]
[319457511,1710784249709,-587.13,0.00021917,2]
[319457512,1710784249720,-500.0,0.00021917,2]
[319457513,1710784249732,-550.9,0.00021917,2]
[319457514,1710784249744,-1703.01,0.00021917,2]
[319457515,1710784249756,-500.0,0.00021917,2]
[319457516,1710784249767,-500.0,0.00021917,2]
[319457517,1710784249778,-500.0,0.00021917,2]
[319457518,1710784249789,-638.98254529,0.00021917,2]
[319457519,1710784249801,-567.84,0.00021917,2]
[319457520,1710784249810,-529.35993443,0.00021917,2]
[319457521,1710784249821,-500.45922513,0.00021917,2]
[319457522,1710784249831,-2188.03,0.00021917,2]
[319457523,1710784249841,-500.0,0.00021917,2]
[319457524,1710784249852,-1001.35,0.00021917,2]
[319457525,1710784249862,-500.0,0.00021917,2]
[319457526,1710784249872,-1608.17,0.00021917,2]
[319457527,1710784249882,-509.71,0.00021917,2]
[319457528,1710784249891,-500.0,0.00021917,2]
[319457529,1710784249901,-500.0,0.00021917,2]
[319457530,1710784249912,-373.85918047,0.00021917,2]
[319457531,1710784249922,-500.0,0.00021917,2]
[319457532,1710784249932,-172.93795435,0.00021917,2]
[319457533,1710784249946,-500.0,0.00021917,2]
[319457534,1710784249957,-500.0,0.00021917,2]
[319457535,1710784249967,-595.08,0.00021917,2]
[319457536,1710784249977,-500.0,0.00021917,2]
[319457537,1710784249987,-500.0,0.00021917,2]
[319457538,1710784249998,-528.5,0.00021917,2]
[319457539,1710784250008,-623.72920014,0.00021917,2]
[319457540,1710784250018,-500.0,0.00021917,2]
[319457541,1710784250029,-500.0,0.00021917,2]
[319457542,1710784250041,-929.17,0.00021917,2]
[319457543,1710784250051,-500.0,0.00021917,2]
[319457544,1710784250061,-500.0,0.00021917,2]
[319457545,1710784250079,-983.26,0.00021917,2]
[319457546,1710784250090,-500.0,0.00021917,2]
[319457547,1710784250100,-500.0,0.00021917,2]
[319457548,1710784250110,-596.63,0.00021917,2]
[319457549,1710784250121,-500.0,0.00021917,2]
[319457550,1710784250131,-500.0,0.00021917,2]
[319457551,1710784250142,-283.45051908,0.00021917,2]
[319457552,1710784250152,-500.0,0.00021917,2]
[319457553,1710784250162,-500.0,0.00021917,2]
[319457554,1710784250172,-500.0,0.00021917,2]
[319457555,1710784250183,-517.42392893,0.00021917,2]
[319457556,1710784250196,-500.0,0.00021917,2]
[319457557,1710784250206,-886.26,0.00021917,2]
[319457558,1710784250216,-500.0,0.00021917,2]
[319457559,1710784250225,-500.0,0.00021917,2]
[319457560,1710784250235,-1466.52,0.00021917,2]
[319457561,1710784250245,-674.81,0.00021917,2]
[319457562,1710784250255,-500.0,0.00021917,2]
[319457563,1710784250264,-500.0,0.00021917,2]
[319457564,1710784250274,-500.0,0.00021917,2]
[319457565,1710784250284,-751.71,0.00021917,2]
[319457566,1710784250294,-2043.27,0.00021917,2]
[319457567,1710784250303,-2813.76,0.00021917,2]
[319457568,1710784250313,-500.0,0.00021917,2]
[319457569,1710784250323,-818.09,0.00021917,2]
[319457570,1710784250334,-4534.99,0.00021917,2]
[319457571,1710784250344,-1507.05,0.00021917,2]
[319457572,1710784250355,-500.0,0.00021917,2]
[319457573,1710784250365,-500.0,0.00021917,2]
[319457574,1710784250376,-320.21092752,0.00021917,2]
[319457575,1710784250386,-525.21,0.00021917,2]
[319457576,1710784250396,-660.7,0.00021917,2]
[319457577,1710784250406,-500.0,0.00021917,2]
[319457578,1710784250416,-798.41,0.00021917,2]
[319457579,1710784250425,-1417.24,0.00021917,2]
[319457580,1710784250435,-500.0,0.00021917,2]
[319457581,1710784250448,-500.0,0.00021917,2]
[319457582,1710784250458,-500.0,0.00021917,2]
[319457583,1710784250468,-941.25,0.00021917,2]
[319457584,1710784250479,-500.0,0.00021917,2]
[319457585,1710784250489,-500.0,0.00021917,2]
[319457586,1710784250499,-1894.71,0.00021917,2]
[319457587,1710784250510,-500.0,0.00021917,2]
[319457588,1710784250520,-500.0,0.00021917,2]
[319457589,1710784250530,-1151.73,0.00021917,2]
[319457590,1710784250540,-28202.76,0.00021917,2]
[319457591,1710784250550,-500.0,0.00021917,2]
[319457592,1710784250560,-500.0,0.00021917,2]
[319457593,1710784250571,-565.06456761,0.00021917,2]
[319457594,1710784250581,-472.07262467,0.00021917,2]
[319457595,1710784250591,-503.67991473,0.00021917,2]
[319457596,1710784250601,-506.87091858,0.00021917,2]
[319457597,1710784250611,-473.43644533,0.00021917,2]
[319457598,1710784250622,-1372.1,0.00021917,2]
[319457599,1710784250632,-500.0,0.00021917,2]
[319457600,1710784250643,-500.0,0.00021917,2]
[319457601,1710784250653,-500.0,0.00021917,2]
[319457602,1710784250663,-500.0,0.00021917,2]
[319457603,1710784250674,-606.67928982,0.00021917,2]
[319457604,1710784250685,-1969.49,0.00021917,2]
[319457605,1710784250701,-500.0,0.00021917,2]
[319457606,1710784250712,-500.0,0.00021917,2]
[319457607,1710784250723,-500.0,0.00021917,2]
[319457608,1710784250734,-300.0,0.00021917,2]
[319457609,1710784250745,-500.0,0.00021917,2]
[319457610,1710784250756,-500.0,0.00021917,2]
[319457611,1710784250767,-3039.37,0.00021917,2]
[319457612,1710784250778,-500.0,0.00021917,2]
[319457613,1710784250788,-500.0,0.00021917,2]
[319457614,1710784250798,-500.0,0.00021917,2]
[319457615,1710784250809,-508.78712883,0.00021917,2]
[319457616,1710784250820,-500.0,0.00021917,2]
[319457617,1710784250830,-500.0,0.00021917,2]
[319457618,1710784250841,-561.65,0.00021917,2]
[319457619,1710784250851,-500.0,0.00021917,2]
[319457620,1710784250862,-500.0,0.00021917,2]
[319457621,1710784250872,-500.0,0.00021917,2]
[319457622,1710784250887,-500.0,0.00021917,2]
[319457623,1710784250902,-530.75,0.00021917,2]
[319457624,1710784250912,-500.0,0.00021917,2]
[319457625,1710784250923,-500.0,0.00021917,2]
[319457626,1710784250933,-500.0,0.00021917,2]
[319457627,1710784250947,-1540.64,0.00021917,2]
[319457628,1710784250957,-744.57,0.00021917,2]
[319457629,1710784250967,-500.0,0.00021917,2]
[319457630,1710784250978,-252.11943836,0.00021917,2]
[319457631,1710784250988,-500.0,0.00021917,2]
[319457632,1710784250998,-500.0,0.00021917,2]
[319457633,1710784251008,-1103.03,0.00021917,2]
[319457634,1710784251017,-500.0,0.00021917,2]
[319457635,1710784251027,-2230.48,0.00021917,2]
[319457636,1710784251037,-500.0,0.00021917,2]
[319457637,1710784251048,-500.0,0.00021917,2]
[319457638,1710784251058,-500.0,0.00021917,2]
[319457639,1710784251067,-500.0,0.00021917,2]
[319457640,1710784251079,-500.0,0.00021917,2]
[319457641,1710784251089,-500.0,0.00021917,2]
[319457642,1710784251099,-1304.47,0.00021917,2]
[319457643,1710784251109,-500.0,0.00021917,2]
[319457644,1710784251121,-2098.2,0.00021917,2]
[319457645,1710784251131,-649.04,0.00021917,2]
[319457646,1710784251141,-500.0,0.00021917,2]
[319457647,1710784251153,-935.97,0.00021917,2]
[319457648,1710784251163,-1777.25,0.00021917,2]
[319457649,1710784251173,-618.47,0.00021917,2]
[319457650,1710784251183,-500.0,0.00021917,2]
[319457651,1710784251195,-1922.81,0.00021917,2]
[319457652,1710784251206,-4202.27,0.00021917,2]
[319457653,1710784251216,-5449.6,0.00021917,2]
[319457654,1710784251226,-3151.85,0.00021917,2]
[319457655,1710784251237,-500.0,0.00021917,2]
[319457656,1710784251247,-500.0,0.00021917,2]
[319457657,1710784251257,-500.0,0.00021917,2]
[319457658,1710784251267,-1995.77,0.00021917,2]
[319457659,1710784251277,-500.0,0.00021917,2]
[319457660,1710784251288,-500.0,0.00021917,2]
[319457661,1710784251298,-821.59,0.00021917,2]
[319457662,1710784251308,-500.0,0.00021917,2]
[319457663,1710784251318,-542.52,0.00021917,2]
[319457664,1710784251328,-1358.0,0.00021917,2]
[319457665,1710784251338,-631.81,0.00021917,2]
[319457666,1710784251347,-970.08,0.00021917,2]
[319457667,1710784251357,-500.0,0.00021917,2]
[319457668,1710784251367,-500.0,0.00021917,2]
[319457669,1710784251378,-500.0,0.00021917,2]
[319457670,1710784251388,-500.0,0.00021917,2]
[319457671,1710784251398,-1101.17,0.00021917,2]
[319457672,1710784251408,-5180.63,0.00021917,2]
[319457673,1710784251418,-500.0,0.00021917,2]
[319457674,1710784251431,-500.0,0.00021917,2]
[319457675,1710784251443,-563.95,0.00021917,2]
[319457676,1710784251453,-11679.5,0.00021917,2]
[319457677,1710784251740,-500.0,0.00021917,2]
[319457678,1710784251751,-500.0,0.00021917,2]
[319457679,1710784251761,-504.51361406,0.00021917,2]
[319457680,1710784251770,-2669.32,0.00021917,2]
[319457681,1710784251780,-1162.11,0.00021917,2]
[319457682,1710784251790,-1416.53,0.00021917,2]
[319457683,1710784251799,-500.0,0.00021917,2]
[319457684,1710784251809,-2540.43,0.00021917,2]
[319457685,1710784251819,-500.0,0.00021917,2]
[319457686,1710784251829,-500.0,0.00021917,2]
[319457687,1710784251838,-804.69,0.00021917,2]
[319457688,1710784251849,-1346.63,0.00021917,2]
[319457689,1710784251859,-903.55,0.00021917,2]
[319457690,1710784251868,-2124.03,0.00021917,2]
[319457691,1710784251882,-500.0,0.00021917,2]
[319457692,1710784251891,-500.0,0.00021917,2]
[319457693,1710784251902,-754.17,0.00021917,2]
[319457694,1710784251911,-964.49,0.00021917,2]
[319457695,1710784251921,-1890.01,0.00021917,2]
[319457696,1710784251931,-775.67,0.00021917,2]
[319457697,1710784251943,-500.0,0.00021917,2]
[319457698,1710784251953,-500.0,0.00021917,2]
[319457699,1710784251963,-513.2126168,0.00021917,2]
[319457700,1710784251973,-500.0,0.00021917,2]
[319457701,1710784251983,-500.0,0.00021917,2]
[319457702,1710784251993,-1406.28,0.00021917,2]
[319457703,1710784252003,-684.21,0.00021917,2]
[319457704,1710784252013,-520.08248567,0.00021917,2]
[319457705,1710784252022,-877.6,0.00021917,2]
[319457706,1710784252032,-500.0,0.00021917,2]
[319457707,1710784252043,-604.8,0.00021917,2]
[319457708,1710784252053,-2470.5,0.00021917,2]
[319457709,1710784252063,-515.08,0.00021917,2]
[319457710,1710784252074,-569.44,0.00021917,2]
[319457711,1710784252084,-500.0,0.00021917,2]
[319457712,1710784252094,-955.39,0.00021917,2]
[319457713,1710784252104,-860.91,0.00021917,2]
[319457714,1710784252114,-500.0,0.00021917,2]
[319457715,1710784252124,-500.0,0.00021917,2]
[319457716,1710784252134,-500.0,0.00021917,2]
[319457717,1710784252144,-500.0,0.00021917,2]
[319457718,1710784252157,-500.0,0.00021917,2]
[319457719,1710784252168,-500.0,0.00021917,2]
[319457720,1710784252178,-500.0,0.00021917,2]
[319457721,1710784252187,-500.0,0.00021917,2]
[319457722,1710784252200,-1443.01,0.00021917,2]
[319457723,1710784252209,-592.76,0.00021917,2]
[319457724,1710784252219,-500.0,0.00021917,2]
[319457725,1710784252228,-500.0,0.00021917,2]
[319457726,1710784252238,-500.0,0.00021917,2]
[319457727,1710784252247,-3184.81,0.00021917,2]
[319457728,1710784252257,-500.0,0.00021917,2]
[319457729,1710784252267,-578.73,0.00021917,2]
[319457730,1710784252277,-500.0,0.00021917,2]
[319457731,1710784252286,-500.0,0.00021917,2]
[319457732,1710784252297,-336.40901174,0.00021917,2]
[319457733,1710784252306,-500.0,0.00021917,2]
[319457734,1710784252315,-500.0,0.00021917,2]
[319457735,1710784252325,-3018.69,0.00021917,2]
[319457736,1710784252335,-500.0,0.00021917,2]
[319457737,1710784252344,-1129.16,0.00021917,2]
[319457738,1710784252353,-500.0,0.00021917,2]
[319457739,1710784252362,-500.0,0.00021917,2]
[319457740,1710784252372,-500.0,0.00021917,2]
[319457741,1710784252382,-500.0,0.00021917,2]
[319457742,1710784252392,-1768.92,0.00021917,2]
[319457743,1710784252401,-1186.13,0.00021917,2]
[319457744,1710784252410,-1610.47,0.00021917,2]
[319457745,1710784252420,-549.94,0.00021917,2]
[319457746,1710784252429,-502.27881962,0.00021917,2]
[319457747,1710784252438,-14778.14,0.00021917,2]
[319457748,1710784252450,-500.0,0.00021917,2]
[319457749,1710784252460,-15724.66,0.00021917,2]
[319457750,1710784252469,-500.0,0.00021917,2]
[319457751,1710784252478,-500.0,0.00021917,2]
[319457752,1710784252487,-873.13,0.00021917,2]
[319457753,1710784252496,-2692.4,0.00021917,2]
[319457754,1710784252505,-500.0,0.00021917,2]
[319457755,1710784252514,-500.0,0.00021917,2]
[319457756,1710784252523,-500.0,0.00021917,2]
[319457757,1710784252533,-911.15,0.00021917,2]
[319457758,1710784252542,-3339.23,0.00021917,2]
[319457759,1710784252551,-500.0,0.00021917,2]
[319457760,1710784252560,-500.0,0.00021917,2]
[319457761,1710784252569,-500.0,0.00021917,2]
[319457762,1710784252578,-1451.26,0.00021917,2]
[319457763,1710784252588,-500.0,0.00021917,2]
[319457764,1710784252598,-500.0,0.00021917,2]
[319457765,1710784252607,-500.0,0.00021917,2]
[319457766,1710784252617,-500.0,0.00021917,2]
[319457767,1710784252626,-500.0,0.00021917,2]
[319457768,1710784252636,-500.0,0.00021917,2]
[319457769,1710784252645,-500.0,0.00021917,2]
[319457770,1710784252655,-500.0,0.00021917,2]
[319457771,1710784252665,-1724.56,0.00021917,2]
[319457772,1710784252675,-762.89,0.00021917,2]
[319457773,1710784252685,-501.0127448,0.00021917,2]
[319457774,1710784252698,-500.0,0.00021917,2]
[319457775,1710784252707,-4651.9,0.00021917,2]
[319457776,1710784252717,-10458.22,0.00021917,2]
[319457777,1710784252727,-500.0,0.00021917,2]
[319457778,1710784252737,-784.2,0.00021917,2]
[319457779,1710784252746,-551.97,0.00021917,2]
[319457780,1710784252756,-500.0,0.00021917,2]
[319457781,1710784252765,-533.24,0.00021917,2]
[319457782,1710784252775,-500.0,0.00021917,2]
[319457783,1710784252785,-583.65,0.00021917,2]
[319457784,1710784252795,-948.85,0.00021917,2]
[319457785,1710784252804,-500.0,0.00021917,2]
[319457786,1710784252814,-500.0,0.00021917,2]
[319457787,1710784252824,-1839.32,0.00021917,2]
[319457788,1710784252833,-3473.95,0.00021917,2]
[319457789,1710784252843,-500.0,0.00021917,2]
[319457790,1710784252853,-500.0,0.00021917,2]
[319457791,1710784252862,-1746.32,0.00021917,2]
[319457792,1710784252872,-500.0,0.00021917,2]
[319457793,1710784252882,-500.0,0.00021917,2]
[319457794,1710784252892,-500.0,0.00021917,2]
[319457795,1710784252902,-1959.44,0.00021917,2]
[319457796,1710784252912,-929.09,0.00021917,2]
[319457797,1710784252921,-7903.8,0.00021917,2]
[319457798,1710784252931,-500.0,0.00021917,2]
[319457799,1710784252942,-2127.67,0.00021917,2]
[319457800,1710784252952,-500.0,0.00021917,2]
[319457801,1710784252961,-500.0,0.00021917,2]
[319457802,1710784252971,-500.0,0.00021917,2]
[319457803,1710784252981,-1482.95,0.00021917,2]
[319457804,1710784252990,-500.0,0.00021917,2]
[319457805,1710784252999,-1295.87,0.00021917,2]
[319457806,1710784253009,-1107.83,0.00021917,2]
[319457807,1710784253018,-500.0,0.00021917,2]
[319457808,1710784253027,-500.0,0.00021917,2]
[319457809,1710784253037,-500.0,0.00021917,2]
[319457810,1710784253047,-500.0,0.00021917,2]
[319457811,1710784253056,-500.0,0.00021917,2]
[319457812,1710784253066,-1136.94,0.00021917,2]
[319457813,1710784253077,-500.0,0.00021917,2]
[319457814,1710784253086,-1361.41,0.00021917,2]
[319457815,1710784253096,-500.0,0.00021917,2]
[319457816,1710784253105,-500.0,0.00021917,2]
[319457817,1710784253115,-500.0,0.00021917,2]
[319457818,1710784253124,-500.0,0.00021917,2]
[319457819,1710784253134,-1016.99,0.00021917,2]
[319457820,1710784253144,-2050.44,0.00021917,2]
[319457821,1710784253153,-500.0,0.00021917,2]
[319457822,1710784253163,-500.0,0.00021917,2]
[319457823,1710784253173,-500.0,0.00021917,2]
[319457824,1710784253182,-500.0,0.00021917,2]
[319457825,1710784253193,-500.0,0.00021917,2]
[319457826,1710784253202,-500.0,0.00021917,2]
[319457827,1710784253212,-500.0,0.00021917,2]
[319457828,1710784253221,-500.0,0.00021917,2]
[319457829,1710784253230,-818.77,0.00021917,2]
[319457830,1710784253240,-517.97823316,0.00021917,2]
[319457831,1710784253249,-1794.95,0.00021917,2]
[319457832,1710784253259,-1154.31,0.00021917,2]
[319457833,1710784253269,-536.35,0.00021917,2]
[319457834,1710784253278,-1741.98,0.00021917,2]
[319457835,1710784253287,-349.30012419,0.00021917,2]
[319457836,1710784253297,-500.0,0.00021917,2]
[319457837,1710784253307,-500.0,0.00021917,2]
[319457838,1710784253316,-1804.4,0.00021917,2]
[319457839,1710784253326,-579.26,0.00021917,2]
[319457840,1710784253335,-500.0,0.00021917,2]
[319457841,1710784253345,-500.0,0.00021917,2]
[319457842,1710784253355,-500.0,0.00021917,2]
[319457843,1710784253365,-500.0,0.00021917,2]
[319457844,1710784253375,-500.0,0.00021917,2]